bitfinex/quotes_SOLUSD_20251207
["timestamp","ask_amount","ask_price","bid_price","bid_amount"]
[1765073479396,8.28,132.71,132.7,3.74328626]
[1765073490100,8.94,132.71,132.7,3.05328626]
[1765073490623,8.28,132.71,132.7,3.05328626]
[1765073495021,16.47529791,132.71,132.67,27.5894909]
[1765073495326,0.66,132.7,132.67,27.5894909]
[1765073507334,0.66,132.7,132.68,3.05328626]
[1765073508637,15.81529791,132.71,132.68,3.05328626]
[1765073508638,8.28,132.71,132.69,0.69]
[1765073508812,8.28,132.71,132.69,3.74328626]
[1765073509014,8.28,132.71,132.7,3.05328626]
[1765073509213,8.28,132.71,132.7,3.74328626]
[1765073522338,8.28,132.71,132.7,5.46043917]
[1765073526330,8.28,132.71,132.7,4.77043917]
[1765073526527,8.28,132.71,132.7,5.45043917]
[1765073531534,8.28,132.71,132.7,4.77043917]
[1765073532234,8.28,132.71,132.7,5.45043917]
[1765073535741,8.28,132.71,132.7,4.77043917]
[1765073536142,8.28,132.71,132.7,5.45043917]
[1765073537351,8.28,132.71,132.7,4.77043917]
[1765073537739,8.93,132.71,132.7,4.77043917]
[1765073543767,8.93,132.71,132.69,12.98665551]
[1765073543969,8.93,132.71,132.69,8.21617771]
[1765073544144,8.93,132.71,132.69,12.98661688]
[1765073546274,8.93,132.71,132.7,4.77043917]
[1765073556662,0.7,132.75,132.71,8.80994492]
[1765073556858,0.7,132.75,132.74,4.77043917]
[1765073558766,0.7,132.77,132.74,5.44043917]
[1765073558990,8.98,132.77,132.76,4.77043917]
[1765073560582,8.28,132.77,132.76,4.77043917]
[1765073561185,8.98,132.77,132.76,4.77043917]
[1765073566385,8.28,132.77,132.76,4.77043917]
[1765073567096,8.28,132.77,132.76,5.44043917]
[1765073567595,8.28,132.77,132.76,12.97282844]
[1765073569476,8.98,132.79,132.76,12.97282844]
[1765073569681,8.98,132.79,132.78,4.77043917]
[1765073572194,8.28,132.79,132.78,4.77043917]
[1765073573305,8.28,132.79,132.78,5.48043917]
[1765073573505,8.28,132.79,132.78,4.77043917]
[1765073575109,8.28,132.79,132.78,12.30169387]
[1765073575415,8.28,132.79,132.78,13.01169387]
[1765073577307,8.28,132.8,132.78,13.01169387]
[1765073577505,8.28,132.8,132.79,4.77043917]
[1765073577714,8.94,132.8,132.79,4.77043917]
[1765073581206,8.94,132.8,132.78,4.77043917]
[1765073581415,0.66,132.79,132.77,7.53164501]
[1765073581589,8.94,132.8,132.78,4.77043917]
[1765073584514,8.94,132.8,132.78,3.75944239]
[1765073585310,8.94,132.8,132.78,3.04944239]
[1765073585486,0.66,132.79,132.78,3.04944239]
[1765073585692,0.66,132.79,132.77,10.5810874]
[1765073585914,0.66,132.79,132.77,11.2910874]
[1765073586116,0.66,132.79,132.75,26.36396252]
[1765073586415,0.66,132.79,132.76,3.75944239]
[1765073586615,0.66,132.79,132.77,3.04944239]
[1765073588318,0.66,132.79,132.76,10.58173649]
[1765073589016,8.19069241,132.79,132.75,3.04944239]
[1765073589411,0.66,132.78,132.75,10.58233428]
[1765073589608,8.26,132.77,132.75,10.58233428]
[1765073590020,0.66,132.76,132.75,10.58233428]
[1765073590823,8.92,132.77,132.75,10.58233428]
[1765073592225,0.66,132.76,132.75,10.58233428]
[1765073595029,8.26,132.77,132.75,10.58233428]
[1765073595229,8.92,132.77,132.75,10.58233428]
[1765073596214,8.92,132.77,132.76,3.04944239]
[1765073596404,8.26,132.77,132.72,8.26]
[1765073596607,15.79194407,132.77,132.74,3.04944239]
[1765073597030,0.66,132.76,132.74,3.04944239]
[1765073599638,0.66,132.76,132.73,3.04944239]
[1765073599939,0.66,132.76,132.74,3.04944239]
[1765073602511,0.69,132.78,132.75,3.71944239]
[1765073602710,8.28,132.77,132.76,3.04944239]
[1765073603312,8.97,132.77,132.76,3.04944239]
[1765073607246,8.97,132.77,132.75,3.04944239]
[1765073607442,8.28,132.77,132.75,3.71944239]
[1765073607946,8.28,132.77,132.76,0.67]
[1765073608438,8.28,132.77,132.76,3.71944239]
[1765073613464,8.22012611,132.8,132.76,11.25183166]
[1765073613650,16.50012611,132.8,132.78,3.04944239]
[1765073615353,16.50012611,132.8,132.78,3.71944239]
[1765073616652,8.97,132.8,132.78,3.71944239]
[1765073616858,8.28,132.8,132.78,3.71944239]
[1765073617770,8.97,132.8,132.78,3.71944239]
[1765073618871,8.97,132.8,132.78,3.04944239]
[1765073619171,0.69,132.79,132.78,3.04944239]
[1765073620449,16.50014431,132.8,132.78,3.04944239]
[1765073622983,0.69,132.79,132.77,3.71944239]
[1765073625056,8.22069065,132.79,132.76,3.71944239]
[1765073625256,8.22069065,132.79,132.76,3.04944239]
[1765073625572,0.69,132.78,132.76,3.04944239]
[1765073625875,0.69,132.78,132.76,3.71944239]
[1765073626270,8.26,132.77,132.76,19.35830639]
[1765073626472,8.26,132.77,132.76,16.308864]
[1765073627793,8.95,132.77,132.76,16.308864]
[1765073628392,8.95,132.77,132.76,19.35830639]
[1765073631287,8.26,132.77,132.76,19.35830639]
[1765073631690,8.94,132.77,132.76,19.35830639]
[1765073632488,8.26,132.77,132.76,19.35830639]
[1765073632793,8.94,132.77,132.76,19.35830639]
[1765073633475,16.47201017,132.77,132.75,16.308864]
[1765073633677,0.69,132.76,132.75,16.308864]
[1765073633992,8.22085571,132.79,132.76,0.7]
[1765073634187,8.26,132.78,132.77,3.04944239]
[1765073634391,8.95,132.78,132.77,3.04944239]
[1765073634993,8.95,132.78,132.76,3.74944239]
[1765073638199,8.95,132.78,132.76,0.7]
[1765073638383,8.95,132.78,132.75,27.5912243]
[1765073639494,8.95,132.78,132.75,26.8912243]
[1765073639879,8.95,132.78,132.75,27.5912243]
[1765073640302,8.95,132.78,132.76,0.7]
[1765073640798,8.95,132.78,132.75,26.8912243]
[1765073641006,8.95,132.78,132.75,27.5912243]
[1765073645214,0.69,132.77,132.73,7.53393973]
[1765073645386,0.69,132.77,132.73,11.28338212]
[1765073645707,0.69,132.77,132.74,3.74944239]
[1765073645886,0.69,132.77,132.74,3.04944239]
[1765073646584,0.69,132.77,132.74,4.7676254]
[1765073647716,8.22184249,132.77,132.74,4.7676254]
[1765073648217,0.69,132.76,132.74,4.7676254]
[1765073653206,0.69,132.76,132.73,13.00156513]
[1765073653826,0.69,132.76,132.74,4.7676254]
[1765073656214,0.69,132.76,132.73,12.30156513]
[1765073656401,8.26,132.75,132.73,12.30156513]
[1765073656793,8.95,132.75,132.73,12.30156513]
[1765073657417,8.95,132.75,132.73,13.00156513]
[1765073687850,8.95,132.75,132.74,4.7676254]
[1765073695884,8.95,132.75,132.73,13.00156513]
[1765073696683,8.95,132.75,132.73,12.30156513]
[1765073697282,8.95,132.75,132.73,4.7676254]
[1765073697480,0.72,132.74,132.72,21.0764894]
[1765073698263,8.26,132.75,132.72,21.7364894]
[1765073698479,8.97,132.75,132.72,21.7364894]
[1765073698982,0.71,132.74,132.72,21.7364894]
[1765073699278,8.26,132.75,132.72,29.27108626]
[1765073699486,8.97,132.75,132.73,5.4276254]
[1765073702193,8.26,132.75,132.73,5.4276254]
[1765073702486,8.26,132.75,132.74,4.7676254]
[1765073706498,8.26,132.75,132.74,3.05128326]
[1765073706676,11.31128326,132.79,132.74,3.05128326]
[1765073706677,0.71,132.8,132.75,8.80994492]
[1765073706877,17.23,132.8,132.77,3.05128326]
[1765073707093,17.23,132.8,132.78,3.05128326]
[1765073707286,8.26,132.8,132.79,3.05128326]
[1765073707489,8.26,132.8,132.79,12.52122818]
[1765073709396,0.1,132.81,132.79,12.52122818]
[1765073709597,0.1,132.81,132.8,3.71128326]
[1765073709978,0.1,132.81,132.8,12.07128326]
[1765073710177,0.1,132.81,132.8,11.41128326]
[1765073712101,0.1,132.81,132.8,3.05128326]
[1765073719517,0.1,132.81,132.8,11.24140374]
[1765073719820,0.1,132.81,132.8,20.31140374]
[1765073753237,0.1,132.81,132.8,19.65140374]
[1765073755546,0.1,132.81,132.8,20.33140374]
[1765073756723,0.1,132.81,132.8,29.14134866]
[1765073766341,0.1,132.81,132.8,30.8516335]
[1765073766856,0.1,132.81,132.8,26.0900654]
[1765073767157,0.1,132.81,132.8,30.8516335]
[1765073770565,0.1,132.81,132.8,21.7816335]
[1765073770940,0.1,132.81,132.8,24.79561081]
[1765073774543,0.75,132.81,132.8,7.53012048]
[1765073774748,0.1,132.81,132.8,12.29168858]
[1765073774946,0.1,132.81,132.8,21.7816335]
[1765073777133,0.75,132.81,132.8,21.1016335]
[1765073781767,0.75,132.81,132.8,4.7615681]
[1765073789686,0.75,132.81,132.8,12.29168858]
[1765073791086,0.1,132.81,132.8,12.29168858]
[1765073791382,0.76,132.81,132.8,12.29168858]
[1765073794285,0.1,132.81,132.8,12.29168858]
[1765073794487,0.76,132.81,132.8,12.29168858]
[1765073801393,0.1,132.81,132.8,12.29168858]
[1765073801686,0.1,132.81,132.8,21.8016335]
[1765073803072,0.1,132.81,132.8,24.81561081]
[1765073803486,0.1,132.81,132.8,21.8016335]
[1765073806786,0.1,132.82,132.81,8.80994492]
[1765073807108,0.1,132.83,132.81,22.53151302]
[1765073807278,0.1,132.83,132.82,30.58037702]
[1765073807669,0.1,132.83,132.82,33.59367318]
[1765073807892,0.1,132.83,132.82,41.12265977]
[1765073813205,0.1,132.85,132.83,8.80994492]
[1765073813504,0.1,132.85,132.84,4.7615681]
[1765073813809,0.1,132.85,132.84,5.4315681]
[1765073814503,0.82,132.85,132.84,29.88037702]
[1765073815084,0.82,132.85,132.84,21.0704321]
[1765073816024,0.82,132.85,132.82,4.7615681]
[1765073816197,0.82,132.85,132.84,4.7615681]
[1765073816517,0.82,132.85,132.84,21.0704321]
[1765073817097,0.82,132.85,132.84,28.59828515]
[1765073818527,0.82,132.85,132.84,37.40823007]
[1765073818528,0.1,132.85,132.84,37.40823007]
[1765073820122,0.1,132.85,132.84,38.07823007]
[1765073820329,0.1,132.85,132.84,37.40823007]
[1765073820733,0.1,132.85,132.84,38.07823007]
[1765073821223,0.1,132.85,132.84,37.40823007]
[1765073821224,0.82,132.85,132.84,37.40823007]
[1765073822609,0.1,132.85,132.84,37.40823007]
[1765073823558,0.1,132.85,132.84,38.07823007]
[1765073825536,0.1,132.87,132.85,8.80994492]
[1765073825740,0.1,132.87,132.86,9.5231362]
[1765073825937,0.1,132.87,132.86,10.1931362]
[1765073827655,0.1,132.87,132.86,17.71985605]
[1765073828446,0.1,132.87,132.86,23.41940395]
[1765073829169,0.1,132.87,132.86,32.22934887]
[1765073834098,0.1,132.9,132.89,16.308864]
[1765073834278,0.1,132.9,132.89,28.16334574]
[1765073834452,0.82,132.9,132.89,28.16334574]
[1765073834960,0.1,132.9,132.89,28.16334574]
[1765073835371,0.1,132.9,132.89,35.68836643]
[1765073837575,0.82,132.9,132.89,35.68836643]
[1765073837975,0.1,132.9,132.89,35.68836643]
[1765073838559,0.82,132.9,132.89,35.68836643]
[1765073841601,0.1,132.9,132.89,35.68836643]
[1765073843993,0.81,132.9,132.89,35.68836643]
[1765073844689,0.1,132.9,132.89,36.40836643]
[1765073845089,0.1,132.9,132.89,35.68836643]
[1765073845894,0.81,132.9,132.89,35.68836643]
[1765073859794,0.1,132.9,132.89,35.68836643]
[1765073859995,0.81,132.9,132.89,35.68836643]
[1765073861601,0.1,132.9,132.89,35.68836643]
[1765073862502,0.81,132.9,132.89,35.68836643]
[1765073864029,0.1,132.9,132.89,36.40836643]
[1765073864614,0.1,132.9,132.89,35.68836643]
[1765073868147,0.1,132.9,132.89,36.40836643]
[1765073868353,0.71,132.93,132.89,55.22091816]
[1765073868643,0.71,132.93,132.92,3.04453682]
[1765073869545,0.71,132.93,132.92,10.56785911]
[1765073870232,0.71,132.93,132.92,7.52332229]
[1765073870543,0.71,132.93,132.92,10.56785911]
[1765073880751,0.1,132.94,132.92,20.03780403]
[1765073881050,0.1,132.94,132.93,23.08177489]
[1765073883645,0.76,132.94,132.93,10.56729315]
[1765073884925,0.1,132.94,132.93,10.56729315]
[1765073885241,0.1,132.94,132.93,23.08177489]
[1765073888359,0.1,132.94,132.93,26.49716787]
[1765073891472,0.1,132.94,132.93,21.08493456]
[1765073893157,0.76,132.94,132.93,21.08493456]
[1765073893577,0.1,132.94,132.93,21.08493456]
[1765073895191,0.1,132.94,132.93,21.74493456]
[1765073896964,0.76,132.94,132.93,21.08493456]
[1765073901076,0.1,132.94,132.93,21.08493456]
[1765073901268,0.8,132.94,132.93,21.08493456]
[1765073902361,0.1,132.94,132.93,21.08493456]
[1765073905080,0.1,132.94,132.93,25.83716787]
[1765073905265,0.1,132.94,132.93,21.08493456]
[1765073905871,0.8,132.94,132.93,21.08493456]
[1765073907075,0.1,132.94,132.93,21.08493456]
[1765073908881,0.1,132.94,132.93,25.83716787]
[1765073909702,0.8,132.94,132.93,25.83716787]
[1765073909982,0.8,132.94,132.93,21.08493456]
[1765073911082,0.8,132.94,132.93,25.83716787]
[1765073916088,0.8,132.94,132.93,21.08493456]
[1765073917074,0.1,132.94,132.93,21.08493456]
[1765073918189,0.1,132.94,132.93,25.83716787]
[1765073919993,0.1,132.94,132.93,21.08493456]
[1765073927093,0.1,132.94,132.93,21.78493456]
[1765073927987,0.1,132.94,132.93,21.08493456]
[1765073928384,0.1,132.95,132.94,25.11880892]
[1765073928697,0.8,133.01,132.99,8.80994492]
[1765073928875,0.8,133.01,133.0,13.56217823]
[1765073929491,0.8,133.01,133.0,18.31441154]
[1765073929691,0.8,133.01,133.0,25.83320853]
[1765073929884,0.1,133.01,133.0,26.53320853]
[1765073930693,0.1,133.01,133.0,25.83320853]
[1765073931577,0.82,133.01,133.0,21.08097522]
[1765073932075,0.1,133.01,133.0,21.08097522]
[1765073932276,0.82,133.01,133.0,21.08097522]
[1765073935502,0.1,133.01,133.0,26.54320853]
[1765073936192,0.1,133.01,133.0,18.31441154]
[1765073936398,0.78,133.01,133.0,13.56217823]
[1765073936598,0.78,133.01,133.0,4.75223331]
[1765073937304,0.1,133.01,133.0,10.21446662]
[1765073937490,0.1,133.01,133.0,9.50446662]
[1765073937684,0.78,133.01,133.0,4.75223331]
[1765073942307,0.1,133.01,133.0,42.85207253]
[1765073943001,0.1,133.01,133.0,45.86151465]
[1765073948002,0.1,133.01,133.0,42.85207253]
[1765073950523,0.1,133.01,133.0,48.53503661]
[1765073951826,0.1,133.01,133.0,56.79503661]
[1765073952933,0.1,133.01,133.0,48.53503661]
[1765073953224,0.1,133.01,133.0,56.79503661]
[1765073961130,0.78,133.04,133.0,75.59202909]
[1765073961311,0.78,133.04,133.03,28.15629506]
[1765073963734,0.78,133.04,133.03,35.67339646]
[1765073964311,0.1,133.04,133.03,36.39339646]
[1765073965723,0.1,133.04,133.03,35.67339646]
[1765073965927,0.82,133.04,133.03,35.67339646]
[1765073969722,0.82,133.04,133.03,19.34635014]
[1765073970328,0.82,133.04,133.03,3.03748614]
[1765073970715,0.82,133.04,133.03,10.55458754]
[1765073971151,0.82,133.07,133.03,36.39339646]
[1765073971324,0.82,133.07,133.06,10.55289272]
[1765073971526,0.82,133.07,133.06,19.36283764]
[1765073972235,0.82,133.07,133.06,10.55289272]
[1765073972416,0.82,133.07,133.06,19.36283764]
[1765073975426,0.32,133.07,133.06,19.36283764]
[1765073976716,0.32,133.07,133.05,7.51588302]
[1765073976938,0.32,133.07,133.06,3.03748614]
[1765073978245,0.32,133.07,133.05,7.51588302]
[1765073978431,0.32,133.07,133.06,3.03748614]
[1765073979430,15.69324215,133.1,133.06,3.03748614]
[1765073979631,15.69324215,133.1,133.07,3.03748614]
[1765073981530,0.72,133.09,133.07,3.03748614]
[1765073982822,0.72,133.09,133.05,7.51588302]
[1765073983028,0.72,133.09,133.07,3.03748614]
[1765073986252,8.2337248,133.09,133.05,7.51588302]
[1765073986436,8.2337248,133.09,133.05,3.03748614]
[1765073986637,0.72,133.08,133.05,3.03748614]
[1765073987942,0.72,133.08,133.05,10.55342136]
[1765073989663,0.72,133.08,133.06,3.03748614]
[1765073989859,8.23433941,133.08,133.04,23.82524407]
[1765073990166,0.72,133.08,133.05,3.03748614]
[1765073990467,7.51389052,133.09,133.05,3.03748614]
[1765073990468,0.7,133.07,133.06,16.308864]
[1765073992148,0.7,133.07,133.05,3.03748614]
[1765073993066,0.7,133.07,133.06,3.03748614]
[1765073998859,0.7,133.07,133.04,8.23638007]
[1765073999063,0.7,133.07,133.06,3.03748614]
[1765074000275,0.7,133.07,133.05,3.03748614]
[1765074002680,0.72,133.08,133.06,10.55268575]
[1765074002886,0.72,133.08,133.07,3.03748614]
[1765074003068,0.72,133.09,133.07,3.03748614]
[1765074007285,0.72,133.09,133.08,3.03748614]
[1765074007467,0.72,133.09,133.07,3.03748614]
[1765074010386,0.72,133.09,133.07,4.74413079]
[1765074010882,8.96,133.1,133.08,12.25806195]
[1765074011062,8.96,133.1,133.09,4.74413079]
[1765074013170,8.96,133.1,133.08,12.25806195]
[1765074017188,8.96,133.1,133.09,4.74413079]
[1765074018771,0.72,133.12,133.09,5.46413079]
[1765074018987,8.26,133.11,133.1,4.74413079]
[1765074019791,8.98,133.11,133.1,4.74413079]
[1765074020184,8.26,133.11,133.1,4.74413079]
[1765074020982,8.91,133.11,133.1,4.74413079]
[1765074021812,8.26,133.11,133.1,12.95727879]
[1765074022292,8.26,133.11,133.1,12.25727879]
[1765074025510,8.26,133.11,133.1,12.95727879]
[1765074025898,8.26,133.11,133.1,12.25727879]
[1765074026196,8.26,133.11,133.1,12.95727879]
[1765074026504,8.26,133.11,133.1,12.25727879]
[1765074027290,8.26,133.11,133.1,12.95727879]
[1765074027671,8.26,133.11,133.1,12.25727879]
[1765074028074,8.26,133.11,133.1,4.74413079]
[1765074028898,8.26,133.11,133.1,5.44413079]
[1765074029401,8.26,133.11,133.1,4.74413079]
[1765074030386,8.26,133.11,133.09,12.95769595]
[1765074030905,8.26,133.11,133.1,0.7]
[1765074031288,8.26,133.11,133.09,12.95769595]
[1765074033407,8.26,133.11,133.1,4.74413079]
[1765074033897,8.91,133.11,133.1,4.74413079]
[1765074034310,8.26,133.11,133.1,4.74413079]
[1765074034878,8.91,133.11,133.1,4.74413079]
[1765074035099,8.26,133.11,133.1,4.74413079]
[1765074036091,8.91,133.11,133.1,4.74413079]
[1765074036303,8.26,133.11,133.1,4.74413079]
[1765074036787,8.26,133.11,133.1,5.44413079]
[1765074038307,8.26,133.11,133.1,4.74413079]
[1765074038909,8.26,133.11,133.1,5.44413079]
[1765074041309,3.62902875,133.13,133.1,5.44413079]
[1765074041515,3.62902875,133.13,133.12,4.74413079]
[1765074041898,3.62902875,133.13,133.12,5.44413079]
[1765074042282,3.62902875,133.13,133.12,21.76609494]
[1765074044221,3.62902875,133.13,133.12,4.74413079]
[1765074044699,3.62902875,133.13,133.12,5.44413079]
[1765074045612,3.62902875,133.13,133.12,4.74413079]
[1765074045990,4.27902875,133.13,133.12,4.74413079]
[1765074046191,11.86902875,133.13,133.12,4.74413079]
[1765074047713,12.51902875,133.13,133.11,4.74413079]
[1765074048042,12.51902875,133.13,133.12,4.74413079]
[1765074050307,12.51902875,133.13,133.11,4.74413079]
[1765074051200,12.51902875,133.13,133.1,8.21305496]
[1765074051403,12.51902875,133.13,133.11,4.74413079]
[1765074055417,12.51902875,133.13,133.11,5.45413079]
[1765074055620,11.86902875,133.13,133.11,5.45413079]
[1765074056128,11.86902875,133.13,133.11,12.96663302]
[1765074056327,11.86902875,133.13,133.12,4.74413079]
[1765074057302,11.86902875,133.13,133.12,5.45413079]
[1765074058626,11.86902875,133.13,133.12,4.74413079]
[1765074061138,11.86902875,133.13,133.12,5.45413079]
[1765074063332,11.86902875,133.13,133.12,4.74413079]
[1765074063832,11.86902875,133.13,133.12,5.45413079]
[1765074064629,11.86902875,133.13,133.12,4.74413079]
[1765074065108,11.86902875,133.13,133.12,5.45413079]
[1765074065533,12.57902875,133.13,133.11,12.25663302]
[1765074065718,12.57902875,133.13,133.11,4.74413079]
[1765074066131,11.86902875,133.13,133.11,4.74413079]
[1765074066333,11.86902875,133.13,133.11,5.45413079]
[1765074068615,11.86902875,133.13,133.12,0.71]
[1765074068815,12.57902875,133.13,133.11,4.74413079]
[1765074069319,11.86902875,133.13,133.11,5.45413079]
[1765074069519,11.86902875,133.13,133.11,0.71]
[1765074070324,11.86902875,133.13,133.11,5.45413079]
[1765074071442,11.86902875,133.13,133.11,0.71]
[1765074071630,12.57902875,133.13,133.11,0.71]
[1765074071825,0.71,133.12,133.1,4.74413079]
[1765074072140,0.71,133.12,133.1,5.45413079]
[1765074072347,0.71,133.12,133.1,3.03495806]
[1765074072945,20.09058383,133.13,133.1,3.74495806]
[1765074073448,0.71,133.12,133.09,3.74495806]
[1765074074442,0.71,133.12,133.09,3.03495806]
[1765074074630,19.38058383,133.13,133.1,0.71]
[1765074074826,20.09058383,133.13,133.1,3.74495806]
[1765074075440,0.71,133.12,133.08,23.8229479]
[1765074075751,0.71,133.12,133.08,20.05382206]
[1765074075952,3.74495806,133.12,133.08,16.308864]
[1765074076334,3.74495806,133.12,133.08,17.018864]
[1765074076335,0.71,133.11,133.08,17.018864]
[1765074076540,8.24,133.1,133.08,17.018864]
[1765074077733,8.95,133.1,133.08,17.018864]
[1765074077953,8.24,133.1,133.08,17.018864]
[1765074078537,8.95,133.1,133.08,17.018864]
[1765074079133,3.74495806,133.09,133.05,3.03495806]
[1765074079329,3.74495806,133.09,133.05,3.74495806]
[1765074079548,0.71,133.08,133.05,3.03495806]
[1765074079854,8.24,133.07,133.05,3.03495806]
[1765074080153,8.24,133.07,133.05,3.74495806]
[1765074080357,8.91,133.07,133.05,3.03495806]
[1765074080732,0.67,133.06,133.03,11.27190184]
[1765074081739,0.67,133.06,133.03,3.75495806]
[1765074081938,0.67,133.06,133.03,0.72]
[1765074082140,0.67,133.06,133.03,3.75495806]
[1765074082539,0.67,133.06,133.02,11.2724814]
[1765074082741,0.67,133.06,133.03,3.03495806]
[1765074082958,0.67,133.06,133.03,3.75495806]
[1765074085761,11.22040112,133.06,133.02,3.03495806]
[1765074085939,11.22040112,133.06,133.03,0.72]
[1765074086255,8.18544306,133.06,133.03,0.72]
[1765074088443,0.67,133.05,133.02,3.75495806]
[1765074088652,8.26,133.04,133.02,0.72]
[1765074088853,15.77662931,133.04,133.01,3.03495806]
[1765074089058,0.67,133.03,133.0,20.06382206]
[1765074089931,0.67,133.03,133.01,0.72]
[1765074093143,8.26,133.04,133.01,3.75495806]
[1765074093342,8.26,133.04,133.02,3.03495806]
[1765074093542,8.26,133.04,133.02,3.75495806]
[1765074094357,8.26,133.04,133.03,3.75495806]
[1765074094544,8.26,133.04,133.03,0.72]
[1765074094861,8.26,133.04,133.03,3.75495806]
[1765074098257,8.26,133.04,133.03,0.72]
[1765074098753,8.26,133.04,133.03,3.75495806]
[1765074100468,7.51547289,133.06,133.03,3.75495806]
[1765074100656,8.26,133.05,133.03,3.75495806]
[1765074103587,0.67,133.04,133.01,3.75495806]
[1765074103745,0.67,133.04,133.0,19.34382206]
[1765074104073,0.67,133.04,133.0,20.06382206]
[1765074104470,8.26,133.03,133.01,3.75495806]
[1765074104848,8.26,133.03,133.02,0.72]
[1765074108765,8.93,133.03,133.01,3.03495806]
[1765074110082,16.44719751,133.03,133.0,20.06382206]
[1765074110780,16.44719751,133.03,133.0,17.028864]
[1765074111461,16.44719751,133.03,133.0,20.06382206]
[1765074115282,16.48719751,133.03,133.0,20.06382206]
[1765074116890,0.71,133.02,133.0,16.308864]
[1765074118886,8.22795797,133.02,133.0,16.308864]
[1765074120183,7.51795797,133.02,132.99,3.03495806]
[1765074120386,16.4871937,133.03,133.01,3.03495806]
[1765074121262,15.7771937,133.03,133.01,3.70495806]
[1765074121982,16.4871937,133.03,133.0,3.03495806]
[1765074122166,16.4871937,133.03,133.0,3.70495806]
[1765074122486,0.71,133.02,133.0,3.70495806]
[1765074122786,16.4871937,133.03,133.0,3.70495806]
[1765074122989,0.71,133.02,133.0,0.67]
[1765074124386,16.4871937,133.03,133.0,3.70495806]
[1765074127969,8.22779895,133.02,133.0,0.67]
[1765074128174,8.26,133.01,133.0,0.67]
[1765074128501,8.26,133.01,132.99,20.01382206]
[1765074128974,8.26,133.01,133.0,0.67]
[1765074129999,8.26,133.01,133.0,3.70495806]
[1765074132613,8.26,133.01,133.0,3.03495806]
[1765074133407,8.26,133.01,133.0,3.70495806]
[1765074134191,8.26,133.01,133.0,3.03495806]
[1765074134405,8.26,133.01,133.0,4.74938641]
[1765074134909,8.26,133.01,133.0,5.41938641]
[1765074136524,7.51653638,133.04,133.0,5.41938641]
[1765074136728,8.26,133.04,133.03,4.74938641]
[1765074137202,8.26,133.04,133.03,5.41938641]
[1765074140324,8.26,133.04,133.03,0.67]
[1765074141347,8.26,133.04,133.03,0.17]
[1765074143423,8.26,133.04,133.03,4.91938641]
[1765074145669,8.26,133.04,133.03,4.74938641]
[1765074145839,8.26,133.04,133.03,5.40938641]
[1765074146704,8.92,133.04,133.03,4.74938641]
[1765074148511,8.92,133.04,133.02,4.74938641]
[1765074148710,8.92,133.04,133.03,4.74938641]
[1765074149209,16.43653638,133.04,133.02,4.74938641]
[1765074149434,16.43653638,133.04,133.03,4.74938641]
[1765074150936,8.26,133.04,133.03,4.74938641]
[1765074151317,8.92,133.04,133.03,4.74938641]
[1765074151518,16.43653638,133.04,133.02,4.74938641]
[1765074151719,0.66,133.03,133.02,4.74938641]
[1765074154644,16.43653638,133.04,133.02,4.74938641]
[1765074157363,16.43653638,133.04,133.03,4.74938641]
[1765074157646,8.92,133.04,133.03,4.74938641]
[1765074158445,8.17484181,133.07,133.03,21.71825041]
[1765074158653,8.17484181,133.07,133.04,4.74938641]
[1765074158654,8.92,133.06,133.04,4.74938641]
[1765074160636,0.66,133.05,133.04,4.74938641]
[1765074161623,0.66,133.05,133.03,4.74938641]
[1765074161828,8.26,133.04,133.02,4.74938641]
[1765074162028,8.26,133.04,133.02,21.05825041]
[1765074162236,8.92,133.04,133.02,21.05825041]
[1765074163029,8.92,133.04,133.02,21.71825041]
[1765074164257,8.92,133.04,133.02,16.308864]